{"text_format":"1","workbook":"xlsx","n_sheets":2,"sheets":["Свод_ПС","Поддержка_семьи"],"not_rendered":{"charts":0,"images":1,"macros":1,"external_links":0,"defined_names":10,"comments":1,"pivot_tables":0},"unopened":[],"bounds":{"document_bytes":16777216,"sheet_cells":100000,"rows_first":2000,"rows_last":500,"rows_between":2000,"halvings":0,"cell_chars":16384,"cell_head_chars":4096},"cells_cut":0,"cells_raw":0,"read":"whole","date_system":"1900"}

{"sheet":"Свод_ПС","index":0,"n_rows":52,"n_cols":20,"rows_kept":52,"cut":false,"hidden":false,"merged":[[0,18,1,18],[46,1,46,4],[47,1,47,4],[48,1,48,4],[50,1,50,4],[0,9,0,11],[0,12,0,14],[0,15,0,17],[3,1,6,2],[7,1,10,2],[28,1,31,2],[37,1,40,2],[45,0,51,0],[41,1,44,2],[3,0,44,0],[0,6,0,8],[11,1,14,2],[1,3,1,4],[1,1,1,2],[51,1,51,4],[16,1,19,2],[24,1,27,2],[20,1,23,2],[33,1,36,2],[0,0,0,2],[0,3,0,4]]}
["Код КЦ",null,null,{"$f":"Поддержка_семьи!C1","v":0},null,"Качество","1 квартал",null,null,"2 квартал",null,null,"3 квартал",null,null,"4 квартал",null,null,"итого"]
["Субъект","Форма образования",null,"возраст детей (в месяцах)",null,"% удовл.","январь","февраль","март","апрель","май","июнь","июль","август","сентябрь","октябрь","ноябрь","декабрь"]
[null,null,null,"от","до",null,"01","02","03","04","05","06","07","08","09","10","11","12",null,1]
["Родители / законные представители","семейная",null,2,18,null,null,null,null,null,null,null,null,null,null,null,null,null,{"$f":"SUM(G4:R4)","v":0},2]
[null,null,null,18,36,null,null,null,null,null,null,null,null,null,null,null,null,null,{"$f":"SUM(G5:R5)","v":0},3]
[null,null,null,36,84,null,null,null,null,null,null,null,null,null,null,null,null,null,0,4]
[null,null,null,84,216,null,null,null,null,null,null,null,null,null,null,null,null,null,0,5]
[null,"неорганизованная",null,"0,16","1,6",null,null,null,null,null,null,null,null,null,null,null,null,null,0,6]
[null,"неорганизованная",null,"1,6",3,null,null,null,null,null,null,null,null,null,null,null,null,null,0,7]
[null,"неорганизованная",null,3,7,null,null,null,null,null,null,null,null,null,null,null,null,null,0,8]
[null,"неорганизованная",null,7,18,null,null,null,null,null,null,null,null,null,null,null,null,null,0,9]
[null,"ОО",null,"0,16","1,6",null,null,null,null,null,null,null,null,null,null,null,null,null,0,10]
[null,"ОО",null,"1,6",3,null,null,null,null,null,null,null,null,null,null,null,null,null,0,11]
[null,"ОО",null,3,7,null,null,null,null,null,null,null,null,null,null,null,null,null,0,12]
[null,"ОО",null,7,18,null,null,null,null,null,null,null,null,null,null,null,null,null,0,13]
[null,"Форма оказания помощи на базе КЦ",null,null,null,null,null,null,null,null,null,null,null,null,null,null,null,null,0,14]
[null,"методическая",null,"0,16","1,6",null,null,null,null,null,null,null,null,null,null,null,null,null,0,15]
[null,null,null,"1,6",3,null,null,null,null,null,null,null,null,null,null,null,null,null,0,16]
[null,null,null,3,7,null,null,null,null,null,null,null,null,null,null,null,null,null,0,17]
[null,null,null,7,18,null,null,null,null,null,null,null,null,null,null,null,null,null,0,18]
[null,"психолого-педагогическая",null,"0,16","1,6",null,null,null,null,null,null,null,null,null,null,null,null,null,0,19]
[null,null,null,"1,6",3,null,null,null,null,null,null,null,null,null,null,null,null,null,0,20]
[null,null,null,3,7,null,null,null,null,null,null,null,null,null,null,null,null,null,0,21]
[null,null,null,7,18,null,null,null,null,null,null,null,null,null,null,null,null,null,0,22]
[null,"диагностическая",null,"0,16","1,6",null,null,null,null,null,null,null,null,null,null,null,null,null,0,23]
[null,null,null,"1,6",3,null,null,null,null,null,null,null,null,null,null,null,null,null,0,24]
[null,null,null,3,7,null,null,null,null,null,null,null,null,null,null,null,null,null,0,25]
[null,null,null,7,18,null,null,null,null,null,null,null,null,null,null,null,null,null,0,26]
[null,"консультативная",null,"0,16","1,6",null,null,null,null,null,null,null,null,null,null,null,null,null,0,27]
[null,null,null,"1,6",3,null,null,null,null,null,null,null,null,null,null,null,null,null,0,28]
[null,null,null,3,7,null,null,null,null,null,null,null,null,null,null,null,null,null,0,29]
[null,null,null,7,18,null,null,null,null,null,null,null,null,null,null,null,null,null,0,30]
[null,"Общее количество обращений в КЦ",null,null,null,null,null,null,null,null,null,null,null,null,null,null,null,null,0,31]
[null,"очная форма",null,"0,16","1,6",null,null,null,null,null,null,null,null,null,null,null,null,null,0,32]
[null,null,null,"1,6",3,null,null,null,null,null,null,null,null,null,null,null,null,null,0,33]
[null,null,null,3,7,null,null,null,null,null,null,null,null,null,null,null,null,null,0,34]
[null,null,null,7,18,null,null,null,null,null,null,null,null,null,null,null,null,null,0,35]
[null,"дистанционно",null,"0,16","1,6",null,null,null,null,null,null,null,null,null,null,null,null,null,0,36]
[null,null,null,"1,6",3,null,null,null,null,null,null,null,null,null,null,null,null,null,0,37]
[null,null,null,3,7,null,null,null,null,null,null,null,null,null,null,null,null,null,0,38]
[null,null,null,7,18,null,null,null,null,null,null,null,null,null,null,null,null,null,0,39]
[null,"выезд на дом",null,"0,16","1,6",null,null,null,null,null,null,null,null,null,null,null,null,null,0,40]
[null,null,null,"1,6",3,null,null,null,null,null,null,null,null,null,null,null,null,null,0,41]
[null,null,null,3,7,null,null,null,null,null,null,null,null,null,null,null,null,null,0,42]
[null,null,null,7,18,null,null,null,null,null,null,null,null,null,null,null,null,null,0,43]
["граждане, желающие принять на воспитание","Форма оказания помощи на базе КЦ",null,null,null,null,null,null,null,null,null,null,null,null,null,null,null,null,0,44]
[null,"методическая",null,null,null,null,null,null,null,null,null,null,null,null,null,null,null,null,0,45]
[null,"психолого-педагогическая",null,null,null,null,null,null,null,null,null,null,null,null,null,null,null,null,0,46]
[null,"консультативная",null,null,null,null,null,null,null,null,null,null,null,null,null,null,null,null,0,47]
[null,"Общее количество обращений в КЦ",null,null,null,null,null,null,null,null,null,null,null,null,null,null,null,null,0,48]
[null,"очная форма",null,null,null,null,null,null,null,null,null,null,null,null,null,null,null,null,0,49]
[null,"дистанционно",null,null,null,null,null,null,null,null,null,null,null,null,null,null,null,null,0,50]

{"sheet":"Поддержка_семьи","index":1,"n_rows":4,"n_cols":15,"rows_kept":4,"cut":false,"hidden":false,"merged":[]}
["Код КЦ"]
[]
["№ п/п","№ - консуль-тант","№ бланка","Формат","Дата","ФИО законных представителей","Телефон","Категория получателей услуги ","Возраст ребёнка","статус ОВЗ/инвалид","Краткое наименование организации","Форма оказания помощи","Соцстатус","№ - Тема консультации","Удовлетворенность"]
[1,2,3,4,5,6,7,8,9,10,11,12,13,14,15]